fUST/lending_fUST_20251221
["ID","MTS","AMOUNT","RATE_DAILY","PERIOD"]
[399323974,1766302257823,-3000.0,0.00016,2]
[399323975,1766302257833,-3000.0,0.0001601,2]
[399323976,1766302257844,-3000.0,0.00016012,2]
[399323977,1766302257854,-3000.0,0.00016012,2]
[399323978,1766302257865,-3000.0,0.00016012,2]
[399323979,1766302257875,-350.11363385,0.00016012,2]
[399323980,1766302257885,-3000.0,0.00016012,2]
[399323981,1766302257895,-3000.0,0.00016012,2]
[399323982,1766302257905,-460.38481781,0.00016012,2]
[399323983,1766302257915,-3000.0,0.00016012,2]
[399323984,1766302257925,-3000.0,0.00016012,2]
[399323985,1766302257936,-3000.0,0.00016012,2]
[399323986,1766302257947,-3000.0,0.00016012,2]
[399323987,1766302257956,-1618.00980281,0.00016012,2]
[399323988,1766302257967,-3000.0,0.0001602,2]
[399323989,1766302257977,-501.0,0.00016028,2]
[399323990,1766302257987,-3000.0,0.0001603,2]
[399323991,1766302257996,-3000.0,0.0001604,2]
[399323992,1766302258007,-3000.0,0.0001605,2]
[399323993,1766302258018,-3000.0,0.0001606,2]
[399323994,1766302258028,-3000.0,0.0001607,2]
[399323995,1766302258038,-3000.0,0.0001608,2]
[399323996,1766302258048,-3000.0,0.0001609,2]
[399323997,1766302258058,-160.0,0.00016098,2]
[399323998,1766302258068,-3000.0,0.000161,2]
[399323999,1766302258078,-1041.66666667,0.00016104,2]
[399324000,1766302258088,-3000.0,0.0001611,2]
[399324001,1766302258098,-3000.0,0.0001612,2]
[399324002,1766302258108,-3000.0,0.0001613,2]
[399324003,1766302258118,-3000.0,0.0001614,2]
[399324004,1766302258128,-2000.0,0.00016144,7]
[399324005,1766302258138,-1806.84985442,0.00016148,2]
[399324006,1766302258148,-3000.0,0.0001615,2]
[399324007,1766302258159,-3000.0,0.0001616,2]
[399324008,1766302258169,-1600.0,0.00016164,2]
[399324009,1766302258179,-501.0,0.00016165,2]
[399324010,1766302258189,-4445.618254,0.0001617,2]
[399324011,1766302258199,-500.0,0.00016209,2]
[399324012,1766302258211,-501.0,0.00016302,2]
[399324013,1766302258222,-1800.0,0.00016412,2]
[399324014,1766302258233,-182.1,0.00016438,2]
[399324015,1766302258244,-500.0,0.00016438,2]
[399324016,1766302258255,-500.0,0.00016438,2]
[399324017,1766302258265,-500.0,0.00016438,2]
[399324018,1766302258275,-500.0,0.00016438,2]
[399324019,1766302258285,-591.98143932,0.00016438,2]
[399324020,1766302258295,-500.0,0.00016438,2]
[399324021,1766302258306,-500.0,0.00016438,2]
[399324022,1766302258316,-184.06697569,0.00016438,2]
[399324023,1766302258327,-500.0,0.00016438,2]
[399324024,1766302258338,-500.0,0.00016438,2]
[399324025,1766302258349,-368.25315711,0.00016438,2]
[399324026,1766302258359,-660.0,0.00016438,2]
[399324027,1766302258370,-151.0,0.00016438,2]
[399324028,1766302258380,-151.0,0.00016438,2]
[399324029,1766302258391,-151.0,0.00016438,2]
[399324030,1766302258404,-151.0,0.00016438,2]
[399324031,1766302258685,-151.0,0.00016438,2]
[399324032,1766302258694,-151.0,0.00016438,2]
[399324033,1766302258703,-151.0,0.00016438,2]
[399324034,1766302258712,-151.0,0.00016438,2]
[399324035,1766302258721,-278.358575,0.00016438,2]
[399324036,1766302258733,-154.54248137,0.00016438,2]
[399324037,1766302258751,-151.0,0.00016438,2]
[399324038,1766302258760,-151.0,0.00016438,2]
[399324039,1766302258770,-151.0,0.00016438,2]
[399324040,1766302258780,-151.0,0.00016438,2]
[399324041,1766302258789,-151.0,0.00016438,2]
[399324042,1766302258799,-151.0,0.00016438,2]
[399324043,1766302258809,-151.0,0.00016438,2]
[399324044,1766302258819,-151.0,0.00016438,2]
[399324045,1766302258828,-200.351874,0.00016438,2]
[399324046,1766302258840,-151.0,0.00016438,2]
[399324047,1766302258850,-151.0,0.00016438,2]
[399324048,1766302258859,-151.0,0.00016438,2]
[399324049,1766302258869,-151.0,0.00016438,2]
[399324050,1766302258878,-151.0,0.00016438,2]
[399324051,1766302258888,-151.0,0.00016438,2]
[399324052,1766302258898,-153.535458,0.00016438,2]
[399324053,1766302258908,-3000.0,0.00016438,2]
[399324054,1766302258917,-1510.00285755,0.00016438,2]
[399324055,1766302258926,-3000.0,0.00016438,2]
[399324056,1766302258935,-3010.54555418,0.00016438,2]
[399324057,1766302258945,-3000.0,0.00016438,2]
[399324058,1766302258955,-3000.0,0.00016438,2]
[399324059,1766302258964,-3000.0,0.00016438,2]
[399324060,1766302258974,-501.0,0.00016439,2]
[399324061,1766302258984,-1806.84985442,0.0001646,2]
[399324062,1766302258994,-500.0,0.00016487,2]
[399324063,1766302259004,-500.0,0.00016502,2]
[399324064,1766302259014,-500.0,0.00016502,2]
[399324065,1766302259025,-17351.73,0.00016526,2]
[399324066,1766302259035,-1362.0,0.00016528,2]
[399324067,1766302259044,-633.0,0.00016528,2]
[399324068,1766302259054,-2160.0,0.00016528,2]
[399324069,1766302259065,-292.966,0.00016528,2]
[399324070,1766302259076,-415.0,0.00016528,2]
[399324071,1766302259086,-3500.0,0.0001656,2]
[399324072,1766302259098,-3500.0,0.0001656,2]
[399324073,1766302259108,-1239.19336568,0.0001656,2]
[399324074,1766302259119,-1257.17064127,0.0001656,2]
[399324075,1766302259130,-3500.0,0.0001656,2]
[399324076,1766302259139,-614.97360569,0.0001656,2]
[399324077,1766302259150,-3500.0,0.0001656,2]
[399324078,1766302259159,-3500.0,0.0001656,2]
[399324079,1766302259169,-3500.0,0.0001656,2]
[399324080,1766302259179,-501.0,0.00016576,2]
[399324081,1766302259188,-3988.07939636,0.00016627,8]
[399324082,1766302259198,-182.1,0.00016712,2]
[399324083,1766302259207,-501.0,0.00016713,2]
[399324084,1766302259217,-3000.0,0.0001674,7]
[399324085,1766302259226,-1806.84985442,0.00016772,2]
[399324086,1766302259240,-508.76219309,0.0001685,2]
[399324087,1766302259249,-16879.13824953,0.0001689,2]
[399324088,1766302259259,-2000.0,0.00016959,7]
[399324089,1766302259269,-2100.0,0.0001696,2]
[399324090,1766302259278,-182.1,0.00016986,2]
[399324091,1766302259288,-760.0,0.00016986,2]
[399324092,1766302259298,-1889.74836914,0.00016986,2]
[399324093,1766302259307,-3500.0,0.00016986,2]
[399324094,1766302259317,-3500.0,0.00016986,2]
[399324095,1766302259327,-3500.0,0.00016986,2]
[399324096,1766302259337,-3500.0,0.00016986,2]
[399324097,1766302259346,-126667.73433263,0.0001699,5]
[399324098,1766302259356,-85067.70543229,0.0001699,5]
[399324099,1766302259366,-15000.0,0.00017,2]
[399324100,1766302259375,-500.0,0.00017,2]
[399324101,1766302259386,-111178.73132135,0.00017,2]
[399324102,1766302259396,-20073.54135688,0.00017,2]
[399324103,1766302259407,-1806.84985442,0.00017084,2]
[399324104,1766302259418,-1000.0,0.00017104,2]
[399324105,1766302259428,-492.0,0.00017104,2]
[399324106,1766302259438,-1866.33166549,0.00017108,2]
[399324107,1766302259451,-4000.0,0.00017108,2]
[399324108,1766302259463,-173.62938838,0.00017108,2]
[399324109,1766302259473,-4000.0,0.00017108,2]
[399324110,1766302259484,-1425.03813159,0.00017108,2]
[399324111,1766302259495,-4000.0,0.00017108,2]
[399324112,1766302259506,-182.1,0.0001726,2]
[399324113,1766302259516,-2400.0,0.0001726,2]
[399324114,1766302259527,-500.0,0.00017311,2]
[399324115,1766302259536,-1806.84985442,0.00017396,2]
[399324116,1766302259546,-2400.0,0.00017508,2]
[399324117,1766302259556,-182.1,0.00017534,2]
[399324118,1766302259567,-860.0,0.00017534,2]
[399324119,1766302259578,-467.09653692,0.00017534,2]
[399324120,1766302259590,-4000.0,0.00017534,2]
[399324121,1766302259600,-4000.0,0.00017534,2]
[399324122,1766302259610,-4000.0,0.00017534,2]
[399324123,1766302259619,-2130.87304833,0.000176,2]
[399324124,1766302259629,-966.86233424,0.00017634,2]
[399324125,1766302259640,-4500.0,0.00017656,2]
[399324126,1766302259650,-4500.0,0.00017656,2]
[399324127,1766302259660,-4500.0,0.00017656,2]
[399324128,1766302259669,-1806.84985442,0.00017708,2]
[399324129,1766302259678,-2000.0,0.00017774,7]
[399324130,1766302259688,-250000.0,0.000178,3]
[399324131,1766302259700,-182.1,0.00017808,2]
[399324132,1766302259709,-3000.0,0.00017836,7]
[399324133,1766302259719,-500.0,0.00017999,2]
[399324134,1766302259730,-124766.97383176,0.00018,2]
[399324135,1766302259742,-2228.71,0.00018,2]
[399324136,1766302259752,-500.0,0.00018,2]
[399324137,1766302259764,-29937.77988408,0.00018,2]
[399324138,1766302259774,-178.53565973,0.0001803,2]
[399324139,1766302259784,-206.01101508,0.00018033,2]
[399324140,1766302259794,-3988.07939636,0.00018052,9]
[399324141,1766302259804,-932.56642199,0.00018056,2]
[399324142,1766302259815,-182.1,0.00018082,2]
[399324143,1766302259825,-960.0,0.00018082,2]
[399324144,1766302259836,-4500.0,0.00018082,2]
[399324145,1766302259847,-4500.0,0.00018082,2]
[399324146,1766302259858,-4452.31424286,0.00018082,2]
[399324147,1766302259869,-478.30503181,0.00018177,2]
[399324148,1766302259880,-2845.97344781,0.00018204,2]
[399324149,1766302259889,-4337.09129902,0.00018204,2]
[399324150,1766302259898,-5000.0,0.00018204,2]
[399324151,1766302259909,-182.1,0.00018356,2]
[399324152,1766302259920,-3200.0,0.00018356,2]
[399324153,1766302259932,-200.0,0.00018375,7]
[399324154,1766302259942,-200.0,0.00018375,7]
[399324155,1766302259952,-200.0,0.00018375,7]
[399324156,1766302259961,-2000.0,0.00018589,7]
[399324157,1766302259971,-182.1,0.0001863,2]
[399324158,1766302259982,-1060.0,0.0001863,2]
[399324159,1766302259993,-5000.0,0.0001863,2]
[399324160,1766302260004,-3381.25791092,0.0001863,2]
[399324161,1766302260014,-166.6925053,0.0001863,2]
[399324162,1766302260025,-4464.0,0.0001875,2]
[399324163,1766302260034,-1343.25199276,0.00018752,2]
[399324164,1766302260043,-1000.0,0.00018814,2]
[399324165,1766302260053,-791.0,0.00018814,2]
[399324166,1766302260064,-302.66710251,0.000189,2]
[399324167,1766302260073,-302.66710251,0.000189,2]
[399324168,1766302260083,-182.1,0.00018904,2]
[399324169,1766302260094,-3000.0,0.00018932,7]
[399324170,1766302260103,-4000.0,0.00019,2]
[399324171,1766302260113,-501.17478337,0.00019,2]
[399324172,1766302260123,-500.0,0.00019,2]
[399324173,1766302260132,-20000.0,0.00019,2]
[399324174,1766302260142,-70000.0,0.00019,2]
[399324175,1766302260152,-51862.16680714,0.00019,2]
[399324176,1766302260162,-2405.89,0.00019,2]
[399324177,1766302260171,-910.8997686,0.00019,2]
[399324178,1766302260181,-302.66710251,0.00019089,2]
[399324179,1766302260190,-302.66710251,0.00019089,2]
[399324180,1766302260200,-16879.1382495,0.00019163,2]
[399324181,1766302260210,-182.1,0.00019178,2]
[399324182,1766302260220,-150.0,0.00019178,2]
[399324183,1766302260230,-300.0,0.00019178,2]
[399324184,1766302260240,-450.0,0.00019178,2]
[399324185,1766302260250,-600.0,0.00019178,2]
[399324186,1766302260260,-750.0,0.00019178,2]
[399324187,1766302260270,-830.09460426,0.00019178,2]
[399324188,1766302260282,-1160.0,0.00019178,2]
[399324189,1766302260291,-5000.0,0.00019178,2]
[399324190,1766302260301,-1088.09307553,0.00019178,2]
[399324191,1766302260316,-4719.3558,0.00019178,2]
[399324192,1766302260327,-4719.3558,0.00019178,2]
[399324193,1766302260336,-4719.3558,0.00019178,2]
[399324194,1766302260346,-4719.3558,0.00019178,2]
[399324195,1766302260356,-4719.3558,0.00019178,2]
[399324196,1766302260366,-4719.3558,0.00019178,2]
[399324197,1766302260376,-4719.3558,0.00019178,2]
[399324198,1766302260385,-4719.3558,0.00019178,2]
[399324199,1766302260394,-4719.3558,0.00019178,2]
[399324200,1766302260404,-4719.3558,0.00019178,2]
[399324201,1766302260414,-4719.3558,0.00019178,2]
[399324202,1766302260423,-4719.3558,0.00019178,2]
[399324203,1766302260433,-4719.3558,0.00019178,2]
[399324204,1766302260442,-4719.3558,0.00019178,2]
[399324205,1766302260451,-4719.3558,0.00019178,2]
[399324206,1766302260461,-4719.3558,0.00019178,2]
[399324207,1766302260470,-4719.3558,0.00019178,2]
[399324208,1766302260480,-4719.3558,0.00019178,2]
[399324209,1766302260489,-4719.3558,0.00019178,2]
[399324210,1766302260498,-4719.35579,0.00019178,2]
[399324211,1766302260508,-151.0,0.00019178,2]
[399324212,1766302260517,-154.969718,0.00019178,2]
[399324213,1766302260526,-5500.0,0.00019178,2]
[399324214,1766302260535,-375.700852,0.00019178,2]
[399324215,1766302260544,-17717.23588056,0.00019181,2]
[399324216,1766302260554,-463.83,0.000192,2]
[399324217,1766302260563,-4563.27,0.000192,2]
[399324218,1766302260572,-11842.81646139,0.000192,2]
[399324219,1766302262047,-527.88160207,9.486e-05,2]
[399324220,1766302262087,-500.0,9.582e-05,2]
[399324221,1766302262126,-500.0,9.582e-05,2]
[399324222,1766302262166,-500.0,9.582e-05,2]
[399324223,1766302262206,-353.11262922,9.582e-05,2]
[399324224,1766302262245,-619.13039857,9.582e-05,2]
[399324225,1766302262285,-241.05956925,9.582e-05,2]
[399324226,1766302262327,-500.0,9.582e-05,2]
[399324227,1766302262365,-630.08727724,9.582e-05,2]
[399324228,1766302262405,-500.0,9.582e-05,2]
[399324229,1766302262471,-500.0,9.582e-05,2]
[399324230,1766302262513,-500.0,9.582e-05,2]
[399324231,1766302262553,-500.0,9.582e-05,2]
[399324232,1766302262594,-500.0,9.582e-05,2]
[399324233,1766302262643,402.41865549,9.582e-05,2]
[399324234,1766302262814,500.0,9.582e-05,2]
[399324235,1766302263368,5000.0,9.583e-05,2]
[399324236,1766302263641,97.59134451,9.581e-05,2]
[399324237,1766302263668,202.40865549,9.581e-05,2]
[399324238,1766302274027,500.0,9.582e-05,2]
[399324239,1766302274065,556.26629162,9.582e-05,2]
[399324240,1766302274097,500.0,9.582e-05,2]
[399324241,1766302274134,500.0,9.582e-05,2]
[399324242,1766302274177,500.0,9.582e-05,2]
[399324243,1766302274251,500.0,9.582e-05,2]
[399324244,1766302274304,500.0,9.582e-05,2]
[399324245,1766302300728,-500.0,9.582e-05,2]
[399324246,1766302300763,-500.0,9.582e-05,2]
[399324247,1766302300795,-3000.01,9.583e-05,2]
[399324248,1766302300891,-1999.99,9.583e-05,2]
[399324249,1766302305788,5000.0,9.583e-05,2]
[399324250,1766302325849,-375.700852,9.77e-05,2]
[399324251,1766302325879,-383.772,9.77e-05,2]
[399324252,1766302329137,5000.0,9.583e-05,2]
[399324253,1766302336949,541.39,8.204e-05,2]
[399324254,1766302337367,1082.77,8.95e-05,2]
[399324255,1766302337799,1624.16,9.696e-05,2]
[399324256,1766302348533,-300.0,9.772e-05,2]
[399324257,1766302352224,5000.0,9.77e-05,2]
[399324258,1766302375875,4400.01,9.772e-05,2]
[399324259,1766302375900,599.99,9.772e-05,2]
[399324260,1766302377990,314.0,9.753e-05,2]
[399324261,1766302382626,300.0,9.772e-05,2]
[399324262,1766302382897,300.0,9.772e-05,2]
[399324263,1766302384134,8486.02,9.483e-05,2]
[399324264,1766302384164,10000.01,9.483e-05,2]
[399324265,1766302384194,10000.01,9.483e-05,2]
[399324266,1766302384224,10000.01,9.483e-05,2]
[399324267,1766302400186,-283.08199106,9.377e-05,2]
[399324268,1766302400223,-4433.84601788,9.387e-05,2]
[399324269,1766302400611,-566.15398212,9.387e-05,2]
[399324270,1766302400641,-1200.0,9.482e-05,2]
[399324271,1766302423533,5000.0,9.482e-05,2]
[399324272,1766302437369,-388.02598996,8.265e-05,2]
[399324273,1766302440242,-112.01401004,8.265e-05,2]
[399324274,1766302440277,-1000.09,9.016e-05,2]
[399324275,1766302440609,-3083.44625484,9.483e-05,2]
[399324276,1766302440947,-10000.01,9.483e-05,2]
[399324277,1766302441175,-10000.01,9.483e-05,2]
[399324278,1766302441387,-10000.01,9.483e-05,2]
[399324279,1766302461204,-5000.0,9.387e-05,2]
[399324280,1766302462272,0.01,9.293e-05,2]
[399324281,1766302462299,4999.99,9.293e-05,2]
[399324282,1766302470106,5000.0,9.472e-05,2]
[399324283,1766302486116,0.02,9.472e-05,2]
[399324284,1766302486143,155.89,9.472e-05,2]
[399324286,1766302494125,5000.0,9.472e-05,2]
[399324287,1766302509496,564.02,8.312e-05,2]
[399324288,1766302509661,1128.03,9.068e-05,2]
[399324289,1766302517664,3152.07,9.472e-05,2]
[399324290,1766302517692,1847.93,9.472e-05,2]
[399324291,1766302520006,-297.0,9.482e-05,2]
[399324292,1766302520038,-300.0,9.482e-05,2]
[399324293,1766302520069,-170.0,9.482e-05,2]
[399324294,1766302520101,-1200.0,9.482e-05,2]
[399324295,1766302541212,5000.0,9.482e-05,2]
[399324296,1766302550300,-378.04651728,9.482e-05,2]
[399324297,1766302550334,-500.0,9.482e-05,2]
[399324298,1766302550367,-494.37645136,9.482e-05,2]
[399324299,1766302563033,300.0,9.482e-05,2]
[399324300,1766302564703,5000.0,9.482e-05,2]
[399324301,1766302577651,-7852.08,9.483e-05,2]
[399324302,1766302577788,-3308.19208248,9.483e-05,2]
[399324303,1766302585345,244.50314269,9.482e-05,2]
[399324304,1766302588366,3139.12269235,9.483e-05,2]
[399324305,1766302588394,1860.87730765,9.483e-05,2]
[399324306,1766302588731,564.16,8.314e-05,2]
[399324307,1766302589138,1128.33,9.069e-05,2]
[399324308,1766302604176,5000.0,9.536e-05,2]
[399324309,1766302612523,5000.0,9.536e-05,2]
[399324310,1766302635700,0.01,9.536e-05,2]
[399324311,1766302635728,4999.99,9.536e-05,2]
[399324314,1766302659492,5000.0,9.536e-05,2]
[399324315,1766302669411,0.02,8.313e-05,2]
[399324316,1766302669439,600.6,8.313e-05,2]
[399324317,1766302670337,1201.25,9.069e-05,2]
[399324318,1766302682539,5000.0,9.536e-05,2]
[399324319,1766302705661,3198.16,9.536e-05,2]
[399324320,1766302705714,1801.84,9.536e-05,2]
[399324321,1766302729442,5000.0,9.536e-05,2]
[399324322,1766302750223,633.48,8.333e-05,2]
[399324323,1766302750654,1266.96,9.091e-05,2]
[399324324,1766302752896,5000.0,9.539e-05,2]
[399324325,1766302776408,3099.57,9.539e-05,2]
[399324326,1766302776439,1900.43,9.539e-05,2]
[399324327,1766302799973,5000.0,9.539e-05,2]
[399324328,1766302822939,3099.58,9.539e-05,2]
[399324329,1766302822967,1900.42,9.539e-05,2]
[399324330,1766302830915,662.95,8.289e-05,2]
[399324331,1766302831346,1325.9,9.043e-05,2]
[399324332,1766302845967,5000.0,9.539e-05,2]
[399324333,1766302869549,1110.74,9.539e-05,2]
[399324334,1766302869587,3889.26,9.539e-05,2]
[399324335,1766302892470,5000.0,9.539e-05,2]
[399324336,1766302911115,689.24,8.283e-05,2]
[399324337,1766302911540,421.51,9.036e-05,2]
[399324338,1766302911568,956.98,9.036e-05,2]
[399324339,1766302915999,5000.0,9.539e-05,2]
[399324341,1766302939181,4043.03,9.539e-05,2]
[399324343,1766302989429,-956.97,9.539e-05,2]
[399324344,1766302991335,712.57,8.413e-05,2]
[399324345,1766302991750,1425.13,9.177e-05,2]
[399324346,1766303006904,5000.0,9.539e-05,2]
[399324347,1766303029721,5000.0,9.629e-05,2]
[399324348,1766303034332,-555.0,9.649e-05,2]
[399324349,1766303046256,5000.0,0.000153,120]
[399324350,1766303053158,5000.0,9.649e-05,2]
[399324351,1766303058829,-528.89511165,9.66e-05,2]
[399324352,1766303058862,-335.0,9.671e-05,2]
[399324353,1766303058894,-1200.0,9.671e-05,2]
[399324354,1766303058926,-300.0,9.671e-05,2]
[399324355,1766303064952,5000.0,0.000153,120]
[399324356,1766303070164,685.81,8.41e-05,2]
[399324357,1766303070569,1371.61,9.174e-05,2]
[399324358,1766303076791,3214.7997767,9.671e-05,2]
[399324359,1766303076817,1785.2002233,9.671e-05,2]
[399324360,1766303080377,-202.36933779,9.672e-05,2]
[399324361,1766303080408,-399.54876263,9.672e-05,2]
[399324362,1766303080441,-500.0,9.672e-05,2]
[399324363,1766303080472,-517.89871917,9.672e-05,2]
[399324364,1766303080500,-161.47028595,9.672e-05,2]
[399324365,1766303087829,10000.0,0.00014,30]
[399324366,1766303101487,5000.0,9.672e-05,2]
[399324367,1766303108539,-300.0,9.672e-05,2]
[399324368,1766303108571,-300.0,9.672e-05,2]
[399324369,1766303108604,-1200.0,9.672e-05,2]
[399324370,1766303111342,1000.0,0.0001,10]
[399324371,1766303118815,5688.0,0.000153,120]
[399324372,1766303122215,-3501.36174566,9.673e-05,2]
[399324373,1766303122332,-10000.01,9.673e-05,2]
[399324374,1766303122505,-10000.01,9.673e-05,2]
[399324375,1766303122629,-10000.01,9.673e-05,2]
[399324376,1766303122831,-10000.01,9.673e-05,2]
[399324377,1766303123017,-10000.01,9.673e-05,2]
[399324378,1766303134329,-5000.0,9.576e-05,2]
[399324379,1766303148080,0.01,9.576e-05,2]
[399324380,1766303148109,4999.99,9.576e-05,2]
[399324381,1766303156707,679.15,8.428e-05,2]
[399324382,1766303157108,1358.3,9.194e-05,2]
[399324383,1766303162250,-2962.56,9.673e-05,2]
[399324384,1766303162406,-10000.01,9.673e-05,2]
[399324385,1766303162628,-10000.01,9.673e-05,2]
[399324386,1766303162821,-10000.01,9.673e-05,2]
[399324387,1766303163020,-10000.01,9.673e-05,2]
[399324388,1766303163232,-10000.01,9.673e-05,2]
[399324389,1766303163456,-10000.01,9.673e-05,2]
[399324390,1766303163636,-4967.79633455,9.673e-05,2]
[399324391,1766303171274,64.4173309,9.673e-05,2]
[399324392,1766303171305,4393.11716456,9.673e-05,2]
[399324393,1766303180382,-2222.6074966,9.763e-05,2]
[399324394,1766303222555,300.0,9.762e-05,2]
[399324395,1766303237831,657.04,8.295e-05,2]
[399324396,1766303238252,1314.08,9.049e-05,2]
[399324398,1766303261651,7728.89,9.573e-05,2]
[399324399,1766303261699,10000.01,9.573e-05,2]
[399324400,1766303261747,10000.01,9.573e-05,2]
[399324401,1766303261795,10000.01,9.573e-05,2]
[399324402,1766303261841,10000.01,9.573e-05,2]
[399324403,1766303261889,10000.01,9.573e-05,2]
[399324404,1766303261935,10000.01,9.573e-05,2]
[399324405,1766303261983,10000.01,9.573e-05,2]
[399324406,1766303262024,10000.01,9.573e-05,2]
[399324407,1766303262074,10000.01,9.573e-05,2]
[399324408,1766303295014,-5000.0,9.477e-05,2]
[399324409,1766303312409,0.01,9.477e-05,2]
[399324410,1766303312436,4999.99,9.477e-05,2]
[399324411,1766303317199,664.49,8.214e-05,2]
[399324412,1766303317619,1328.97,8.96e-05,2]
[399324413,1766303318113,-505.74253418,9.572e-05,2]
[399324414,1766303318144,-202.4581687,9.572e-05,2]
[399324415,1766303318174,-300.0,9.572e-05,2]
[399324416,1766303318207,-1200.0,9.572e-05,2]
[399324417,1766303335132,5000.0,9.572e-05,2]
[399324418,1766303342328,300.0,9.572e-05,2]
[399324419,1766303358664,4700.01,9.572e-05,2]
[399324420,1766303358693,299.99,9.572e-05,2]
[399324421,1766303385230,-5000.0,9.477e-05,2]
[399324422,1766303395299,-8249.04550454,9.573e-05,2]
[399324423,1766303395414,-10000.01,9.573e-05,2]
[399324424,1766303395548,-10000.01,9.573e-05,2]
[399324425,1766303395652,-10000.01,9.573e-05,2]
[399324426,1766303395805,-10000.01,9.573e-05,2]
[399324427,1766303395911,-10000.01,9.573e-05,2]
[399324428,1766303396016,-10000.01,9.573e-05,2]
[399324429,1766303396188,-10000.01,9.573e-05,2]
[399324430,1766303409019,-5000.0,8.134e-05,2]
[399324431,1766303409072,-0.01,8.216e-05,2]
[399324432,1766303409229,-656.38,8.216e-05,2]
[399324433,1766303409262,-535.0,8.216e-05,2]
[399324434,1766303409296,-1089.0,8.962e-05,2]
[399324435,1766303409329,-1312.79,8.963e-05,2]
[399324436,1766303409364,-500.0,9.572e-05,2]
[399324437,1766303409793,-1813.67,9.573e-05,2]
[399324438,1766303428060,-5000.0,9.476e-05,2]
[399324439,1766303428104,-0.01,9.572e-05,2]
[399324440,1766303428260,-499.99,9.572e-05,2]
[399324441,1766303428298,-500.0,9.572e-05,2]
[399324442,1766303428329,-500.0,9.572e-05,2]
[399324443,1766303428364,-600.01921001,9.572e-05,2]
[399324444,1766303428402,-2256.56256459,9.573e-05,2]
[399324445,1766303428496,-1286.8664508,9.573e-05,2]
[399324467,1766303431682,-200.0,9.589e-05,2]
[399324469,1766303431692,-518.31720942,9.64e-05,2]
[399324471,1766303431702,-1969.18,9.71e-05,2]
[399324473,1766303431711,-300.0,9.762e-05,2]
[399324475,1766303431720,-1000.0,9.763e-05,2]
[399324477,1766303431729,-1000.0,9.763e-05,2]
[399324479,1766303431738,-1000.0,9.763e-05,2]
[399324481,1766303431747,-1000.0,9.763e-05,2]
[399324483,1766303431756,-383.11749251,9.763e-05,2]
[399324485,1766303431766,-9008.42503138,9.767e-05,2]
[399325225,1766303451607,5000.0,9.579e-05,2]
[399325226,1766303463855,546.26374761,9.573e-05,2]
[399325227,1766303475667,5000.0,9.706e-05,2]
[399325228,1766303476217,622.18,8.274e-05,2]
[399325229,1766303476617,1244.37,9.026e-05,2]
[399325230,1766303500729,2587.19625239,9.706e-05,2]
[399325231,1766303500757,2412.80374761,9.706e-05,2]
[399325232,1766303523867,5000.0,9.706e-05,2]
[399325233,1766303546943,2587.20625239,9.706e-05,2]
[399325234,1766303558440,598.43,8.331e-05,2]
[399325235,1766303558499,9401.58,9.473e-05,2]
[399325236,1766303558530,10000.01,9.473e-05,2]
[399325237,1766303558563,10000.01,9.473e-05,2]
[399325238,1766303558593,10000.01,9.473e-05,2]
[399325239,1766303567653,-1196.86,9.089e-05,2]
[399325240,1766303568520,-2606.29,9.473e-05,2]
[399325241,1766303583340,-300.0,9.472e-05,2]
[399325242,1766303583394,-9400.01,9.473e-05,2]
[399325243,1766303583770,-10000.01,9.473e-05,2]
[399325244,1766303584050,-10000.01,9.473e-05,2]
[399325245,1766303584229,-10000.01,9.473e-05,2]
[399325246,1766303584409,-10000.01,9.473e-05,2]
[399325247,1766303584588,-10000.01,9.473e-05,2]
[399325248,1766303584738,-10000.01,9.473e-05,2]